Cogmind - Beta 16.1 @@@ ROGUE MODE // 2026.05.04 @ 03:02:16 Player: MintyFresh56 Result: Destroyed by S-10 Pest with Light Assault Rifle Performance ------------- Evolutions (1) 500 Regions Visited (2) 400 Robots Destroyed (4) 20 Value Destroyed (101) 101 Prototype IDs (0) 0 Alien Tech Used (0) 0 Bonus (200) 200 TOTAL SCORE: 1221 Bonus ------- Pacifist 200 Cogmind --------- Core Integrity 0/400 Matter 292/300 Energy 100/100 System Corruption 0% Temperature Cool (0) Movement Core (100) Ox1 Location -9/Materials Parts ------- > --- POWER (1) -------- (None) > --- PROPULSION (2) --- (None) > --- UTILITY (3) ------ Small Storage Unit > --- WEAPON (3) ------- (None) > --- INVENTORY (8) ---- Terrain Scanner Peak State ------------ > --- POWER ------------ Light Ion Engine > --- PROPULSION ------- Light Treads Light Treads > --- UTILITY ---------- Small Storage Unit Structural Scanner Sensor Array > --- WEAPON ----------- EM Pulse Gun Assault Rifle Assault Rifle > --- INVENTORY -------- Terrain Scanner Datajack [Rating: 9] Favorites ----------- Power Light Ion Engine Engine Light Ion Engine Propulsion Light Treads Treads Light Treads Utility Small Storage Unit Device Sensor Array Storage Small Storage Unit Weapon Assault Rifle Energy Gun EM Pulse Gun Ballistic Gun Assault Rifle Special Melee Weapon Datajack Build | -11 -10 -9 ------- Run | Yrd Mat Mat Slots Evolved 2 | . . 2 Power . | . . . Propulsion . | . . . Utility 1 | . . 1 Weapon 1 | . . 1 Parts Attached 10 | 6 1 3 Power 1 | 1 . . Engine 1 | 1 . . Core . | . . . Reactor . | . . . Propulsion 2 | 2 . . Treads 2 | 2 . . Leg . | . . . Wheel . | . . . Hover . | . . . Flight . | . . . Utility 3 | 1 1 1 Device 2 | . 1 1 Storage 1 | 1 . . Processor . | . . . Hackware . | . . . Protection . | . . . Artifact . | . . . Weapon 4 | 2 . 2 Energy Gun 1 | 1 . . Energy Cannon . | . . . Ballistic Gun 2 | 1 . 1 Ballistic Cannon . | . . . Launcher . | . . . Special Weapon . | . . . Impact Weapon . | . . . Slashing Weapon . | . . . Piercing Weapon . | . . . Special Melee Weapon 1 | . . 1 Unidentified Prototypes . | . . . Parts Lost 9 | . . 9 Power 1 | . . 1 Propulsion 2 | . . 2 Utility 2 | . . 2 Weapon 4 | . . 4 Highest Loss Streak 9 | . . 9 To Critical Strikes . | . . . Average Backups 1 | 1 1 2 Power . | . . . Propulsion . | . . . Utility . | . . 1 Weapon . | 1 1 . Tool/Special . | . . . Unused Backups 1 | . . 1 Power . | . . . Propulsion . | . . . Utility 1 | . . 1 Weapon . | . . . Tool/Special . | . . . Average Slot Usage (%) 93 | . 96 80 Engine 13 | . 14 10 Treads 26 | . 28 18 Device 11 | . 10 17 Storage 13 | . 14 11 Energy Gun 12 | . 14 6 Ballistic Gun 14 | . 14 17 Peak Build Rating 9 | 6 7 9 Average Rating 6 | 4 6 6 On Entrance 4 | . 6 7 Avg Prop Armor Cover (%) . | . . . Naked Turns . | . . . Heaviest Build 16 | 12 13 16 Greatest Support 40 | 40 40 40 Greatest Overweight (x) 3 | . . 3 Average Overweight (x) . | . . . Largest Inventory Capacity 8 | 8 8 8 Average Capacity 7 | 7 8 8 Most Carried 5 | 5 4 3 Average Carried 1 | 1 1 1 Final Capacity 8 | 8 8 8 Final Carried 4 | 1 4 1 Class Distribution -------------------- 90% | Mutant 9% | Skirmisher Dominant Class ---------------- Mutant | -10/Materials Skirmisher | -9/Materials Resources | -11 -10 -9 ----------- Run | Yrd Mat Mat Matter Collected 341 | 193 89 59 Remotely . | . . . Salvage Created 125 | . . 125 Parts 6 | . . 6 Haulers Intercepted . | . . . Recyclers Shooed . | . . . Parts Field Recycled . | . . . Retrieved Matter . | . . . Parts Self-Destructed . | . . . Prevented . | . . . Parts Restored . | . . . Kills | -11 -10 -9 ------- Run | Yrd Mat Mat Combat Hostiles Destroyed 4 | . . 4 Guns 3 | . . 3 AOE 1 | . . 1 Classes Destroyed 3 | . . 3 Swarmer 2 | . . 2 Grunt 1 | . . 1 Duelist 1 | . . 1 Best Kill Streak 3 | . . 3 Combat Bots Only 3 | . . 3 Max Kills in Single Turn 1 | . . 1 Gunslinging . | . . . Exploded 1 | . . 1 Melee . | . . . Uniques/NPCs Destroyed . | . . . Combat | -11 -10 -9 -------- Run | Yrd Mat Mat Hostile Shots Fired 160 | . . 160 Missed 46 | . . 46 Hits 114 | . . 114 Projectile 114 | . . 114 Critical Strikes 3 | . . 3 Damage Taken 1150 | . 17 1133 Core 406 | . . 406 Absorbed by Shields . | . . . Core Remaining (%) 100 | 100 100 . Volleys Fired 26 | . 4 22 Largest 3 | . 2 3 Hottest 80 | . 60 80 Shots Fired 49 | . 8 41 Gun 49 | . 8 41 Cannon . | . . . Launcher . | . . . Special . | . . . Kinetic 37 | . 4 33 Thermal . | . . . Explosive . | . . . Electromagnetic 12 | . 4 8 Robot Hit Streak 11 | . 1 11 Robot Miss Streak 7 | . 7 4 Penetration Max . | . . . Secondary Targets 2 | . . 2 Max Gunslinging Chain 1 | . . 1 Shots Hit Robots 20 | . 1 19 Core Hits 8 | . . 8 Critical Kills . | . . . Critical Parts Destroyed . | . . . Critical Strikes . | . . . Melee Attacks . | . . . Impact . | . . . Slashing . | . . . Piercing . | . . . Sneak Attacks . | . . . Combat Hostiles . | . . . Follow-up Attacks . | . . . Damage Inflicted 305 | . 24 281 Guns 270 | . 24 246 Cannons . | . . . Explosions 32 | . . 32 Melee . | . . . Ramming 3 | . . 3 Kinetic 177 | . . 177 Thermal 32 | . . 32 Explosive . | . . . Electromagnetic 93 | . 24 69 Impact . | . . . Slashing . | . . . Piercing . | . . . Highest Corruption . | . . . Average Corruption . | . . . Corruption Purged . | . . . Corruption Blocked . | . . . Overload Shots . | . . . Overflow Damage . | . . . Projectiles . | . . . Explosions . | . . . Melee . | . . . Knockbacks . | . . . Impact . | . . . Kinetic . | . . . Secondary . | . . . Self-Inflicted Damage 1 | . . 1 Shots . | . . . Rammed 4 | . . 4 Targets Rammed 4 | . . 4 Kicked . | . . . Crushed . | . . . Highest Temperature 104 | . . 104 Average Temperature 51 | . . 51 Received Heat Transfer 228 | . . 228 Siege Activations . | . . . Martial Activations . | . . . Shielding Activations . | . . . Robots Disrupted . | . . . Combat Hostiles . | . . . Robots Corrupted . | . . . Combat Hostiles . | . . . Parts Fried . | . . . Impact Corruptions . | . . . Robots Melted . | . . . Combat Hostiles . | . . . Parts Melted . | . . . Heat Transferred . | . . . Parts Sabotaged . | . . . Parts Stolen . | . . . Parts Stripped . | . . . Power Chain Reactions 1 | . . 1 Alert | -11 -10 -9 ------- Run | Yrd Mat Mat Maximum Alert Level . | . . . Low Security (%) 100 | 100 100 100 Level 1 . | . . . Level 2 . | . . . Level 3 . | . . . Level 4 . | . . . Level 5 . | . . . High Security . | . . . Max Security . | . . . Peak Influence 63 | . . 63 Initial . | . . . Average 2 | . . 14 Influence Increases 93 | . . 93 Destroy 0b10 Robot/C 80 | . . 80 Destroy Leader 10 | . . 10 Destroy Structure 3 | . . 3 Influence Decreases 93 | . . 93 Time Decay 30 | . . 30 Lost Part 63 | . . 63 Squads Dispatched 1 | . 1 . Investigation 1 | . 1 . Extermination . | . . . Reinforcement . | . . . Assault . | . . . Garrison . | . . . Intercept . | . . . Searches Triggered . | . . . Construction Impeded . | . . . Haulers Reinforced . | . . . Active Scanning Responses . | . . . Cargo Convoy Interrupts . | . . . Stealth | -11 -10 -9 --------- Run | Yrd Mat Mat Distress Signals 1 | . . 1 Communications Jammed . | . . . Distress Signals . | . . . Times Spotted 12 | . 2 10 Peak Tracking Total 8 | . 1 8 Tactical Retreats . | . . . Traps | -11 -10 -9 ------- Run | Yrd Mat Mat Traps Triggered 1 | . 1 . Indirectly . | . . . Trap Hack Attempts . | . . . Triggered . | . . . Disarmed . | . . . Reprogrammed . | . . . Reused . | . . . Traps Extracted . | . . . Installed . | . . . Triggered . | . . . Machines | -11 -10 -9 ---------- Run | Yrd Mat Mat Machines Disabled . | . . . Max in Single Turn . | . . . Machines Repaired . | . . . Machines Dismantled . | . . . Machines Sabotaged . | . . . Overloaded Fab Kills . | . . . Hacking | -11 -10 -9 --------- Run | Yrd Mat Mat Machines Accessed . | . . . Terminals . | . . . Fabricators . | . . . Repair Stations . | . . . Recycling Units . | . . . Scanalyzers . | . . . Garrison Access . | . . . Total Hacks . | . . . Successful . | . . . Failed . | . . . Catastrophic . | . . . Database Lockouts . | . . . Manual . | . . . Terminals . | . . . Fabricators . | . . . Repair Stations . | . . . Recycling Units . | . . . Scanalyzers . | . . . Garrison Access . | . . . Terminal Hacks . | . . . Fabricator Hacks . | . . . Repair Station Hacks . | . . . Recycling Unit Hacks . | . . . Scanalyzer . | . . . Garrison Access Hacks . | . . . Unauthorized Hacks . | . . . Terminals . | . . . Fabricators . | . . . Repair Stations . | . . . Recycling Units . | . . . Scanalyzers . | . . . Garrison Access . | . . . Data Cores Recovered . | . . . Used . | . . . Hacking Detections . | . . . Full Trace Events . | . . . Feedback Events . | . . . Feedback Blocked . | . . . Robot Schematics Acquired . | . . . Robots Built . | . . . Authchips . | . . . Time . | . . . Total Robot Build Rating . | . . . Part Schematics Acquired . | . . . Parts Built . | . . . Authchips . | . . . Time . | . . . Total Part Build Rating . | . . . Part Studies Acquired . | . . . Parts Repaired . | . . . Time . | . . . Parts Recycled . | . . . Recycled Matter . | . . . Retrieved Matter . | . . . Retrieved Components . | . . . Parts Scanalyzed . | . . . Part Schematics Acquired . | . . . Parts Damaged . | . . . Bothacking | -11 -10 -9 ------------ Run | Yrd Mat Mat Used RIF Installer . | . . . Robots Hacked . | . . . Non-combat . | . . . Combat . | . . . Robot Hacks Applied . | . . . Relay Couplers Released . | . . . Fabnet Peak Effective % . | . . . Robots Rewired . | . . . Allies Hacked . | . . . Hacks Repelled . | . . . Allies | -11 -10 -9 -------- Run | Yrd Mat Mat Total Allies . | . . . Largest Group . | . . . Highest-Rated Group . | . . . Highest-Rated Ally . | . . . Total Orders . | . . . Ally Attacks . | . . . Total Damage . | . . . Kills . | . . . Allies Corrupted . | . . . Allies Melted . | . . . Intel | -11 -10 -9 ------- Run | Yrd Mat Mat Active Infowar (turns) 460 | . 362 98 Sensors 412 | . 362 50 Structural 98 | . . 98 Robot Analysis Total . | . . . Derelict Logs Recovered . | . . . Drone Launches . | . . . Drone Recoveries . | . . . Exploration | -11 -10 -9 ------------- Run | Yrd Mat Mat Turns Passed 678 | 95 476 107 Spaces Moved 370 | 58 284 28 Core 21 | 15 . 6 Treads 349 | 43 284 22 Legs . | . . . Wheels . | . . . Hover . | . . . Flight . | . . . Fastest Speed 50 | 50 160 100 Average Speed 154 | 131 160 152 Slowest Speed 200 | 160 160 200 Overloaded Moves . | . . . Propulsion Burnouts . | . . . Robots Hopped . | . . . Potential Cave-ins . | . . . Cave-ins Triggered . | . . . Exploration Rate (%) 16 | 3 42 5 Regions Visited 2 Branch Regions . Pre-discovered Areas . | . . . Known Exits Taken . | . . . Unknown Exits Taken 2 | 1 1 . Scrap Searched . | . . . Spaces Dug . | . . . Terrain Destroyed 2 | . . 2 Melee . | . . . Projectile . | . . . AOE 2 | . . 2 Terrain Rammed . | . . . Walls Destroyed . | . . . Machines Disabled . | . . . Actions | -11 -10 -9 --------- Run | Yrd Mat Mat Total 432 | 77 298 57 Wait 13 | 7 6 . Move 368 | 57 283 28 Hop . | . . . Pick Up 11 | 7 4 . Fast Attach . | . . . Attach 10 | 6 1 3 Detach . | . . . Swap . | . . . Drop . | . . . Fire 26 | . 4 22 Melee . | . . . Ram 4 | . . 4 Kick . | . . . Crush . | . . . Escape Stasis . | . . . Rewire . | . . . Trap . | . . . Miscellaneous . | . . . Route ------- -11/Scrapyard -10/Materials (discovered 2 exits: [*Mat] / [*Sub]) -9/Materials History --------- Turn | Location | Event 7 | -11/Scrapyard | Discovered new exit (range 14) 96 | -11/Scrapyard | Entered Materials 97 | -10/Materials | Met a group of wandering Federalists 307 | -10/Materials | Build established: Mutant 336 | -10/Materials | Discovered new exit (range 7) 459 | -10/Materials | Discovered new exit (range 11) 572 | -10/Materials | Entered another Materials area 572 | -9/Materials | Evolved 2 slots: Utility x1, Weapon x1 667 | -9/Materials | Core integrity fell below 50% 676 | -9/Materials | Core integrity fell below 20% 679 | -9/Materials | Destroyed by S-10 Pest with Light Assault Rifle Last Messages --------------- 00641_ Assault Rifle destroyed. 00641_ U-05 Engineer lays Concrete. 00642_ U-05 Engineer builds a Wall. 00646_ U-05 Engineer lays Concrete. 00646_ Lgt. Treads destroyed. 00647_ U-05 Engineer lays Concrete. 00659_ S-10 Pest destroyed. 00660_ Lgt. Treads destroyed. 00663_ G-34 Mercenary suffers critical hit (Burn). 00663_ G-34 Mercenary destroyed. 00666_ Assault Rifle destroyed. 00668_ Lgt. Ion Engine destroyed. 00670_ Structural Scanner destroyed. 00672_ Datajack destroyed. 00673_ Slammed into Y-45 Defender. 00675_ Acquired 59 matter. 00675_ Slammed into Y-45 Defender. 00676_ R-06 Scavenger collects Imp. Ion Engine. 00678_ Slammed into S-10 Pest. Map ----- +----------------------------------------------------+ | ???????????????????????????????????????? | | ???????????????????????????????????????? | | ???????????????????????????????????????? | | ???????????????????????????????????????? | | ???????????????????????????????????????? | | ???????????????????????????????????????? | | ???????????????????????????????????????? | | ???????????????????????????????????????? | | ???????????????????????????????????????? | | ???????????????????????????????????????? | | ??## ????????????????????????????????? | | ??## ????????????????????????????????? | | ??## ####????????????????????????????? | | ??## ####????????????????????????????? | | ??## # ???? ##?????????????????????? | | ??## # ???? ##?????????????????????? | | ??## # """ ##?????????????????????? | | ??## # """ ##?????????????????????? | | ??## # ##?????????????????????? | | ??## # """ ##?????????????????????? | | ??## # """ ##?????????????????????? | | ??## # """ ##?????????????????????? | | ??## # ## """ ##???????????? | | ??## ###+#############+######+???????? | | ??## %=g r ??????? | | ??## * a s@=% %u ^ ??????? | | ??## s =* ??????? | | ??## ##########Y####### ##?????????? | | ??## ######## #### ? ##?????????? | | ??## ##??????? ##????????????????? | | ??## ##?????? ##????????????????? | | ??#######?????? ##????????????????? | | ??#######?????# + ??????????????? | | ??????????????# ####??????????????? | | ??????????????###########??????????????? | | ???????????????????????????????????????? | | ???????????????????????????????????????? | | ???????????????????????????????????????? | | ???????????????????????????????????????? | | ???????????????????????????????????????? | | ???????????????????????????????????????? | | ???????????????????????????????????????? | | ???????????????????????????????????????? | | ???????????????????????????????????????? | | ???????????????????????????????????????? | | ???????????????????????????????????????? | | | | | | | | | +----------------------------------------------------+ Best States ------------- Heat Dissipation 28 Energy Generation 10 Energy Capacity 125 Matter Stores 300 Matter Capacity 300 Sight Range 16 Robot Scan Range 14 Terrain Scan Density 10 Evasion (%) 50 Recoil Reduction 2 Item Schematics ----------------- None Robot Schematics ------------------ None Fabricated ------------ Nothing Repaired ---------- Nothing Studied --------- None Alien Tech Used ----------------- None Achievements -------------- None Challenges ------------ None Game ------ Seed TransdimensionalSlugTrap Manual? 0 Play Time 00:07:00 Cumulative 2.5 hours Start 2026.05.04 @ 02:56:13 End 2026.05.04 @ 03:02:16 Sessions 1 Manual Loads 0 Difficulty Rogue Special Mode None Game No. 10 Rogue 10 Adventurer 0 Explorer 0 Win Type - Total 0 Types 0/0/0/0/0/0/0/0/0/0 Lore% 1 Gallery% 8 Achievement% 7 Wizard Run 0 Options --------- Layout 1 ASCII 0 Keyboard 0 Movement Arrows Keybinds 0 Fullscreen 1 Font 24/Smallcaps Map View 50x35 Zoom Use 0% Tactical HUD 1 Map Filters NONE Filters NONE Steam 1 RUN: 7e854e2b-53da-4e39-8823-89755779a14c